bitfinex-derivatives/quotes_SOLF0:USTF0_20240908
["timestamp","ask_amount","ask_price","bid_price","bid_amount"]
[1725806460337,8.39,127.98,127.91,2.6296]
[1725806460534,8.39,127.98,127.92,8.39]
[1725806462228,3.1265,127.95,127.92,8.39]
[1725806463426,3.1267,127.94,127.92,8.39]
[1725806465536,3.1268,127.93,127.92,8.39]
[1725806475942,1.3178,128.0,127.92,8.39]
[1725806476138,1.3178,128.0,127.94,8.39]
[1725806476440,9.7078,128.0,127.94,8.39]
[1725806477542,3.1263,127.95,127.94,8.39]
[1725806480638,8.39,127.99,127.93,8.39]
[1725806482840,3.1265,127.95,127.93,8.39]
[1725806483740,8.39,127.99,127.93,8.39]
[1725806485238,3.1266,127.95,127.93,8.39]
[1725806487134,8.39,127.99,127.93,8.39]
[1725806487541,3.1265,127.95,127.93,8.39]
[1725806488740,8.39,127.99,127.93,8.39]
[1725806489748,3.1265,127.95,127.93,8.39]
[1725806491244,9.7078,128.0,127.93,8.39]
[1725806492453,3.1265,127.95,127.93,8.39]
[1725806493747,9.7078,128.0,127.93,8.39]
[1725806493959,9.7078,128.0,127.91,2.6296]
[1725806493960,8.39,127.97,127.91,2.6296]
[1725806494445,3.127,127.93,127.91,2.6296]
[1725806494951,3.127,127.93,127.91,1.2781]
[1725806497151,3.1271,127.92,127.91,1.2781]
[1725806498045,3.1271,127.92,127.91,9.6681]
[1725806502649,3.1269,127.93,127.91,9.6681]
[1725806502860,3.1269,127.93,127.92,8.39]
[1725806503750,1.3548,127.96,127.92,8.39]
[1725806503950,24.7778,128.0,127.91,1.2781]
[1725806503951,1.3178,128.0,127.94,8.39]
[1725806504252,3.126,127.97,127.95,8.39]
[1725806504451,3.126,127.97,127.96,3.83845492]
[1725806504653,9.6662,128.02,127.96,8.39]
[1725806504853,3.1256,127.98,127.97,3.84549221]
[1725806507654,3.1256,127.98,127.95,8.39]
[1725806507857,3.1256,127.98,127.96,3.98085189]
[1725806508261,8.39,128.01,127.95,8.39]
[1725806508952,3.126,127.97,127.95,8.39]
[1725806510059,8.39,128.01,127.95,8.39]
[1725806511453,3.126,127.97,127.95,8.39]
[1725806513067,8.39,128.01,127.95,8.39]
[1725806514962,1.2762,128.02,127.96,8.39]
[1725806515271,3.1256,127.98,127.97,8.39]
[1725806515572,3.1256,127.98,127.97,12.3497499]
[1725806519865,3.1255,127.99,127.97,12.3497499]
[1725806520162,8.39,128.04,127.98,8.39]
[1725806520963,8.39,128.04,127.99,3.97374421]
[1725806521356,3.1251,128.0,127.99,3.97374421]
[1725806523369,3.1251,128.0,127.97,8.39]
[1725806525071,3.1255,127.99,127.97,8.39]
[1725806525366,8.39,128.02,127.96,5.29263877]
[1725806525771,3.1256,127.98,127.96,5.29263877]
[1725806527873,3.1256,127.98,127.97,8.39]
[1725806535973,3.1258,127.97,127.96,3.92943877]
[1725806536168,12.26425758,128.01,127.95,8.39]
[1725806536672,12.26425758,128.01,127.96,3.86635404]
[1725806537780,8.39,128.01,127.96,3.86635404]
[1725806538176,1.3363,128.02,127.96,12.25635404]
[1725806538384,1.3363,128.02,127.97,8.39]
[1725806538577,1.3363,128.02,127.97,12.34388823]
[1725806538778,3.1258,127.98,127.97,12.34388823]
[1725806542379,3.1255,127.99,127.97,12.34388823]
[1725806542685,3.1255,127.99,127.98,8.39]
[1725806543388,3.1255,127.99,127.98,12.31740114]
[1725806546485,3.1255,127.99,127.98,3.92740114]
[1725806546674,3.1255,127.99,127.98,8.39]
[1725806546879,3.1255,127.99,127.98,12.36835599]
[1725806574114,31.85,128.03,127.95,2.7122]
[1725806574315,8.39,128.02,127.96,12.25027975]
[1725806574613,3.126,127.97,127.96,3.86027975]
[1725806574813,3.126,127.97,127.96,12.25027975]
[1725806582618,3.1261,127.96,127.92,3.127]
[1725806582822,3.1261,127.96,127.95,8.39]
[1725806585621,2.656,128.01,127.92,7.09261156]
[1725806585809,23.46,128.0,127.91,1.2772]
[1725806586011,31.85,127.99,127.93,8.39]
[1725806586318,3.1266,127.94,127.93,8.39]
[1725806591319,8.39,127.96,127.84,2.6936]
[1725806591531,1.4061,127.95,127.9,8.39]
[1725806591824,1.4061,127.95,127.91,8.39]
[1725806592128,3.1272,127.92,127.91,12.33434456]
[1725806593925,3.1272,127.92,127.91,3.94434456]
[1725806594128,3.1272,127.92,127.91,8.39]
[1725806594328,3.1272,127.92,127.91,12.39039093]
[1725806594924,3.1272,127.92,127.91,8.39]
[1725806595318,3.1272,127.92,127.91,12.33761532]
[1725806604241,3.1272,127.92,127.91,3.94761532]
[1725806604441,3.1272,127.92,127.9,8.39]
[1725806604640,3.1272,127.92,127.91,3.8162627]
[1725806605441,3.1269,127.93,127.91,8.39]
[1725806605840,3.1271,127.92,127.91,12.37358092]
[1725806608546,3.1271,127.92,127.91,3.98358092]
[1725806608747,3.1271,127.92,127.91,8.39]
[1725806609043,3.1269,127.93,127.91,12.2602111]
[1725806610942,3.1271,127.92,127.91,12.2602111]
[1725806614042,3.1269,127.93,127.91,12.2602111]
[1725806614838,3.1271,127.92,127.91,12.2602111]
[1725806623446,3.127,127.93,127.91,12.2602111]
[1725806623643,23.46,128.01,127.91,12.2602111]
[1725806623644,23.46,128.01,127.92,8.39]
[1725806623849,23.46,128.01,127.95,8.39]
[1725806623850,35.68776387,128.01,127.95,8.39]
[1725806624958,26.1344,128.03,127.96,8.39]
[1725806625254,26.1344,128.03,127.98,8.39]
[1725806625452,26.1344,128.03,127.92,5.7363]
[1725806625453,3.1259,127.97,127.92,5.7363]
[1725806625648,3.1259,127.97,127.96,8.39]
[1725806627247,3.1261,127.96,127.92,2.6093]
[1725806627448,3.1261,127.96,127.95,8.39]
[1725806633652,3.1265,127.95,127.93,8.39]
[1725806634353,31.85,128.0,127.93,8.39]
[1725806636148,31.85,127.99,127.93,8.39]
[1725806636352,33.1592,127.99,127.92,9.6661]
[1725806636763,3.1268,127.94,127.92,9.6661]
[1725806637954,3.1268,127.93,127.92,9.6661]
[1725806648066,3.1268,127.93,127.92,8.39]
[1725806652582,1.3092,127.99,127.92,8.39]
[1725806652766,23.46,128.01,127.96,8.39]
[1725806653074,3.1256,127.98,127.97,8.39]
[1725806658275,3.1256,127.98,127.96,8.39]
[1725806658875,3.1258,127.97,127.96,8.39]
[1725806660377,3.1256,127.98,127.96,8.39]
[1725806665370,3.1255,127.99,127.97,8.39]
[1725806665576,3.1255,127.99,127.98,3.96053669]
[1725806666383,141.43578444,128.01,127.97,8.39]
[1725806666678,141.43578444,128.01,127.95,2.6866]
[1725806666679,31.85,128.06,127.99,8.39]
[1725806666874,3.1246,128.02,128.01,8.39]
[1725806667586,3.1245,128.03,128.01,12.29460168]
[1725806667782,31.85,128.07,128.01,12.29460168]
[1725806668378,3.1245,128.03,128.01,12.29460168]
[1725806668676,2.5736,128.09,128.02,8.39]
[1725806668984,3.1243,128.04,128.02,8.39]
[1725806671174,3.1243,128.04,128.01,12.29460168]
[1725806671373,3.1243,128.04,128.01,8.39]
[1725806671878,3.1244,128.03,128.01,12.389228]
[1725806672073,3.1244,128.03,128.01,3.999228]
[1725806672687,3.1246,128.02,128.01,3.999228]
[1725806673881,3.1246,128.02,128.0,1.3435]
[1725806674281,3.1246,128.02,128.01,3.94883234]
[1725806675081,3.1246,128.02,128.0,1.3435]
[1725806675786,3.1246,128.02,128.0,5.23060742]
[1725806676487,3.1249,128.01,128.0,3.88710742]
[1725806676687,3.1249,128.01,127.99,8.39]
[1725806676890,3.1249,128.01,128.0,3.99805601]
[1725806677391,3.1249,128.01,128.0,12.38805601]
[1725806677688,3.1249,128.01,128.0,8.39]
[1725806677891,3.1248,128.02,128.0,12.32047113]
[1725806684993,23.46,128.06,128.0,12.32047113]
[1725806685386,3.1248,128.02,128.0,12.32047113]
[1725806688095,3.1249,128.01,128.0,12.32047113]
[1725806688891,3.1247,128.02,128.0,12.32047113]
[1725806689185,23.46,128.07,128.0,12.32047113]
[1725806689498,23.46,128.07,128.02,8.39]
[1725806689701,23.46,128.07,128.02,12.26695312]
[1725806690296,23.46,128.1,128.06,8.39]
[1725806690810,3.1233,128.08,128.06,8.39]
[1725806691794,31.85,128.1,128.03,1.3971]
[1725806691997,23.46,128.08,128.03,1.3971]
[1725806692499,3.1241,128.04,128.03,5.36234023]
[1725806692796,23.46,128.08,128.03,5.36234023]
[1725806693293,23.46,128.08,128.02,8.39]
[1725806693503,3.1241,128.04,128.03,3.95172629]
[1725806700198,3.1249,128.01,128.0,1.2868]
[1725806700500,1.2726,128.09,127.94,2.6825]
[1725806700501,23.46,128.04,127.99,3.84323361]
[1725806700699,23.46,128.04,127.95,1.3683]
[1725806700893,23.46,128.04,127.98,8.39]
[1725806701100,23.46,128.02,127.95,1.3683]
[1725806701300,31.85,128.02,127.95,1.3683]
[1725806701607,31.85,128.02,127.95,9.7583]
[1725806701608,35.76861411,128.02,127.95,9.7583]
[1725806702503,35.76861411,128.02,127.95,1.3683]
[1725806702712,35.76861411,128.02,127.95,8.39]
[1725806703008,3.1261,127.96,127.95,8.39]
[1725806703207,3.1261,127.96,127.92,1.3809]
[1725806703208,23.46,127.98,127.92,1.3809]
[1725806703405,23.46,127.98,127.93,12.22773643]
[1725806704011,3.1266,127.94,127.93,12.22773643]
[1725806711617,165.67282916,128.01,127.93,12.22773643]
[1725806711815,165.67282916,128.01,127.98,8.39]
[1725806712812,189.13282916,128.01,127.98,8.39]
[1725806713014,3.1254,127.99,127.98,8.39]
[1725806713617,165.67282916,128.01,127.98,8.39]
[1725806713913,168.79772916,128.01,128.0,8.39]
[1725806716409,3.1254,127.99,127.98,3.89401281]
[1725806716617,3.1254,127.99,127.97,8.39]
[1725806717118,3.1256,127.98,127.97,8.39]
[1725806717313,3.1256,127.98,127.97,12.36928878]
[1725806718416,3.1256,127.98,127.97,8.39]
[1725806718621,197.52282916,128.01,127.92,4.508]
[1725806718817,197.52282916,128.01,127.95,8.39]
[1725806721933,3.1261,127.96,127.95,8.39]
[1725806722726,197.52282916,128.01,127.92,5.36018878]
[1725806723026,23.46,127.99,127.93,8.39]
[1725806723421,3.1265,127.95,127.93,8.39]
[1725806725119,23.46,127.99,127.93,8.39]
[1725806726225,3.1265,127.95,127.93,8.39]
[1725806726628,23.46,127.99,127.93,8.39]
[1725806726829,3.1266,127.94,127.93,8.39]
[1725806743029,23.46,127.97,127.8,237.8731548]
[1725806743236,23.46,127.97,127.91,8.39]
[1725806743540,23.46,127.97,127.91,12.29830198]
[1725806744333,3.1272,127.92,127.91,3.90830198]
[1725806744535,24.8423,127.98,127.91,8.39]
[1725806744734,23.46,127.96,127.93,8.39]
[1725806744932,23.46,127.98,127.95,8.39]
[1725806745331,3.1261,127.96,127.95,8.39]
[1725806750843,31.85,127.99,127.92,1.4025]
[1725806751142,5.31919289,128.0,127.92,1.4025]
[1725806751143,23.46,127.97,127.92,9.7925]
[1725806752248,23.46,127.97,127.92,1.4025]
[1725806752544,23.46,127.97,127.92,9.7925]
[1725806753339,23.46,127.97,127.88,3.1279]
[1725806753340,23.46,127.96,127.88,3.1279]
[1725806753551,23.46,127.96,127.9,8.39]
[1725806754046,3.1269,127.93,127.9,8.39]
[1725806754739,3.1269,127.93,127.92,8.39]
[1725806758245,3.1271,127.92,127.89,3.1277]
[1725806758451,3.1271,127.92,127.91,8.39]
[1725806759351,3.1275,127.91,127.88,2.6792]
[1725806759539,31.85,127.97,127.9,8.39]
[1725806760351,3.1272,127.92,127.9,8.39]
[1725806760654,31.85,127.97,127.9,8.39]
[1725806760853,31.85,127.97,127.92,8.39]
[1725806761954,31.85,127.99,127.93,8.39]
[1725806762252,31.85,127.98,127.91,3.1271]
[1725806762441,23.46,127.98,127.92,8.39]
[1725806762646,23.46,127.98,127.94,8.39]
[1725806762845,23.46,127.98,127.94,12.3345704]
[1725806763453,3.1265,127.95,127.94,12.3345704]
[1725806764947,8.39,127.98,127.9,3.1275]
[1725806765145,8.39,127.98,127.88,2.6792]
[1725806765146,23.46,127.97,127.88,2.6792]
[1725806765347,23.46,127.97,127.91,8.39]
[1725806765549,3.1267,127.94,127.91,8.39]
[1725806766150,3.1267,127.94,127.93,8.39]
[1725806766652,3.1264,127.95,127.93,8.39]
[1725806766856,3.1264,127.95,127.94,12.30533771]
[1725806767047,3.1264,127.95,127.94,8.39]
[1725806767648,3.1264,127.95,127.94,12.28813946]
[1725806769248,26.2484,128.0,127.94,12.28813946]
[1725806769449,26.2484,128.0,127.95,8.39]
[1725806770058,3.1261,127.96,127.95,8.39]
[1725806770255,24.8705,128.0,127.95,8.39]
[1725806771058,23.46,128.0,127.95,8.39]
[1725806771554,3.1258,127.97,127.95,8.39]
[1725806773054,3.1258,127.97,127.96,8.39]
[1725806777665,31.85,128.0,127.94,3.81683864]
[1725806778363,3.1262,127.96,127.94,3.81683864]
[1725806782270,3.1263,127.95,127.94,3.81683864]
[1725806786281,3.1263,127.95,127.94,8.39]
[1725806786477,3.1263,127.95,127.94,12.30589807]
[1725806792776,23.46,128.1,127.94,8.39]
[1725806793087,23.46,128.06,128.01,8.39]
[1725806794269,3.1243,128.04,128.01,8.39]
[1725806794879,3.1246,128.03,128.01,8.39]
[1725806795679,3.1246,128.03,128.0,12.27932312]
[1725806795886,3.1246,128.03,128.0,8.39]
[1725806796588,3.1246,128.03,128.0,12.30632158]
[1725806797090,3.1246,128.02,128.0,12.30632158]
[1725806798382,2.6713,128.05,128.01,8.39]
[1725806798586,2.6713,128.05,128.03,8.39]
[1725806800389,2.6713,128.05,128.01,8.39]
[1725806800784,3.1245,128.03,128.01,8.39]
[1725806801690,3.1246,128.02,128.01,8.39]
[1725806810794,2.6713,128.05,128.01,8.39]
[1725806811088,2.6713,128.05,128.03,8.39]
[1725806811490,3.1243,128.04,128.03,8.39]
[1725806818888,3.124,128.05,128.03,8.39]
[1725806819092,3.124,128.05,128.04,8.39]
[1725806819302,3.1235,128.07,128.04,8.39]
[1725806819497,3.1235,128.07,128.06,8.39]
[1725806819701,2.6504,128.09,128.06,8.39]
[1725806819905,3.1232,128.08,128.07,8.39]
[1725806821399,3.1232,128.08,128.06,8.39]
[1725806821603,3.1234,128.07,128.05,8.39]
[1725806821813,8.39,128.07,128.0,2.678]
[1725806822111,8.39,128.07,128.01,8.39]
[1725806822112,3.1245,128.03,128.01,8.39]
[1725806826703,3.1245,128.03,128.02,8.39]
[1725806827006,3.1242,128.04,128.02,8.39]
[1725806829103,23.46,128.09,128.02,8.39]
[1725806829305,23.46,128.09,128.05,8.39]
[1725806829708,23.46,128.09,128.0,3.9515]
[1725806829709,23.46,128.09,128.06,12.38352538]
[1725806829912,23.46,128.09,128.08,8.39]
[1725806830112,1.3464,128.1,128.08,8.39]
[1725806830408,23.46,128.12,128.09,8.39]
[1725806830910,3.1227,128.1,128.09,8.39]
[1725806831407,23.46,128.13,128.09,8.39]
[1725806831611,23.46,128.13,128.11,8.39]
[1725806831612,3.1224,128.12,128.11,8.39]
[1725806835918,31.85,128.13,128.07,8.39]
[1725806836122,2.6723,128.12,128.07,8.39]
[1725806836315,2.6723,128.12,128.07,12.22530462]
[1725806837423,3.1233,128.08,128.07,12.22530462]
[1725806841017,3.1227,128.1,128.07,12.22530462]
[1725806841225,23.46,128.13,128.1,8.39]
[1725806841625,23.46,128.13,128.09,3.91496173]
[1725806841827,23.46,128.13,128.09,8.39]
[1725806842027,23.46,128.13,128.09,12.31628455]
[1725806843335,3.1228,128.1,128.09,12.31628455]
[1725806846244,3.1228,128.1,128.08,8.39]
[1725806846442,3.1228,128.1,128.09,3.93808409]
[1725806855343,3.1228,128.1,128.08,8.39]
[1725806855344,3.1229,128.09,128.08,8.39]
[1725806856738,3.1232,128.08,128.07,3.90676245]
[1725806857148,3.1232,128.08,128.07,12.29676245]
[1725806863857,26.0819,128.13,128.07,12.29676245]
[1725806864043,26.0819,128.13,128.09,8.39]
[1725806865050,2.6219,128.13,128.11,8.39]
[1725806865249,149.24746895,128.14,128.11,8.39]
[1725806865958,3.1219,128.13,128.12,8.39]
[1725806866352,3.1219,128.13,128.12,12.31042792]
[1725806866654,3.1219,128.13,128.12,8.39]
[1725806867553,172.70746895,128.14,128.1,8.39]
[1725806868353,149.24746895,128.14,128.1,8.39]
[1725806868555,149.24746895,128.14,128.11,8.39]
[1725806868956,3.1222,128.12,128.11,8.39]
[1725806871657,23.46,128.18,128.11,8.39]
[1725806871850,23.46,128.18,128.15,8.39]
[1725806872460,3.1212,128.16,128.15,8.39]
[1725806873259,3.1216,128.15,128.14,8.39]
[1725806874653,3.1216,128.15,128.14,12.37743071]
[1725806877757,3.1213,128.16,128.14,12.37743071]
[1725806877960,3.1213,128.16,128.15,8.39]
[1725806878767,3.1213,128.16,128.15,12.22399672]
[1725806879865,2.5741,128.19,128.15,12.22399672]
[1725806879866,3.121,128.17,128.15,12.22399672]
[1725806880366,23.46,128.21,128.15,12.22399672]
[1725806880569,3.1208,128.18,128.15,3.83399672]
[1725806880763,3.1208,128.18,128.13,3.1217]
[1725806881265,3.84867906,128.23,128.12,2.6642]
[1725806881266,23.42,128.23,128.12,2.6642]
[1725806881465,23.42,128.23,128.19,8.39]
[1725806881670,31.81,128.23,128.16,3.90939667]
[1725806881861,31.81,128.2,128.12,2.6642]
[1725806882060,31.81,128.2,128.14,8.39]
[1725806882268,3.1214,128.16,128.14,12.21198353]
[1725806883673,31.81,128.2,128.14,3.82198353]
[1725806883873,31.81,128.2,128.14,8.39]
[1725806884173,31.81,128.2,128.14,12.30642094]
[1725806885272,3.1214,128.16,128.14,12.30642094]
[1725806885670,3.1214,128.15,128.14,12.30642094]
[1725806887466,3.1213,128.16,128.14,12.30642094]
[1725806888671,1.2724,128.19,128.11,1.2995]
[1725806888976,1.2724,128.19,128.14,8.39]
[1725806890369,3.1217,128.15,128.14,8.39]
[1725806896874,23.42,128.17,128.13,8.39]
[1725806897483,3.1217,128.14,128.13,8.39]
[1725806897875,23.42,128.17,128.08,2.7428]
[1725806897876,23.42,128.15,128.08,2.7428]
[1725806898071,23.42,128.15,128.07,3.97313759]
[1725806898072,31.81,128.15,128.07,3.97313759]
[1725806898281,23.42,128.12,128.07,8.39]
[1725806898480,23.42,128.12,128.07,12.25269612]
[1725806898683,23.42,128.12,128.07,8.39]
[1725806899182,23.42,128.12,128.08,8.39]
[1725806900185,3.1231,128.09,128.08,8.39]
[1725806900775,3.1231,128.09,128.07,3.89782218]
[1725806901085,3.1231,128.09,128.08,8.39]
[1725806901288,3.1231,128.09,128.08,12.30574262]
[1725806905083,3.1228,128.1,128.08,12.30574262]
[1725806905280,3.1228,128.1,128.09,8.39]
[1725806906187,3.1228,128.1,128.09,12.37336847]
[1725806908389,3.1226,128.11,128.09,12.37336847]
[1725806908582,3.1226,128.11,128.1,8.39]
[1725806909387,1.2711,128.16,128.1,12.33714241]
[1725806909588,1.2711,128.16,128.13,8.39]
[1725806911494,3.1217,128.14,128.13,8.39]
[1725806914183,24.6924,128.19,128.13,8.39]
[1725806914497,24.6924,128.19,128.15,8.39]
[1725806914902,33.0824,128.19,128.13,12.37438719]
[1725806915096,34.468,128.19,128.13,12.37438719]
[1725806915798,3.1217,128.14,128.13,8.39]
[1725806919400,26.078,128.19,128.13,8.39]
[1725806919603,26.078,128.19,128.15,8.39]
[1725806921401,26.078,128.19,128.14,8.39]
[1725806921702,23.42,128.18,128.14,8.39]
[1725806922501,23.42,128.18,128.13,8.39]
[1725806923201,3.1217,128.14,128.13,8.39]
[1725806923396,3.1217,128.14,128.12,5.2134715]
[1725806923603,3.1217,128.14,128.13,8.39]
[1725806928106,3.1217,128.14,128.12,5.2134715]
[1725806928107,3.1219,128.13,128.12,5.2134715]
[1725806928407,3.1219,128.13,128.12,13.6034715]
[1725806935906,3.1219,128.13,128.12,9.687]
[1725806938016,26.078,128.19,128.12,9.687]
[1725806938225,26.078,128.19,128.15,8.39]
[1725806938822,2.658,128.19,128.15,8.39]
[1725806939319,3.1212,128.16,128.15,8.39]
[1725806940013,3.1218,128.14,128.12,1.297]
[1725806940217,3.1218,128.14,128.13,8.39]
[1725806941626,23.42,128.16,128.11,3.82297845]
[1725806941929,23.42,128.16,128.11,8.39]
[1725806942219,3.1224,128.12,128.11,12.31327505]
[1725806943620,23.42,128.14,128.07,1.3158]
[1725806943831,23.42,128.14,128.09,8.39]
[1725806944123,24.7317,128.14,128.09,8.39]
[1725806944627,24.7317,128.14,128.09,12.38648711]
[1725806945023,3.1226,128.11,128.1,8.39]
[1725806947030,3.1229,128.09,128.07,1.3042]
[1725806947224,24.7317,128.14,128.08,12.2037157]
[1725806947421,24.7317,128.14,128.1,8.39]
[1725806947626,3.1224,128.11,128.1,8.39]
[1725806953141,3.1228,128.1,128.08,3.8137157]
[1725806953440,3.1228,128.1,128.09,8.39]
[1725806956338,3.1229,128.09,128.08,3.8137157]
[1725806956638,3.1229,128.09,128.08,12.2037157]
[1725806957027,33.1217,128.14,128.08,12.2037157]
[1725806957028,3.1227,128.1,128.08,12.2037157]
[1725806957232,3.1227,128.1,128.09,8.39]
[1725806965636,170.92893848,128.15,128.09,8.39]
[1725806965838,170.92893848,128.15,128.12,8.39]
[1725806967441,3.1219,128.13,128.12,8.39]
[1725806972742,3.1219,128.13,128.11,3.99751089]
[1725806972942,3.1219,128.13,128.12,8.39]
[1725806984756,3.1217,128.14,128.12,8.39]
[1725806984956,3.1217,128.14,128.13,8.39]
[1725806987160,149.27223848,128.15,128.13,8.39]
[1725806987462,146.15073848,128.15,128.12,8.39]
[1725806987658,3.1217,128.14,128.09,3.1228]
[1725806987863,169.57073848,128.15,128.08,2.7244]
[1725806988059,169.57073848,128.15,128.1,8.39]
[1725806988460,169.57073848,128.15,128.08,6.56367874]
[1725806988661,179.36503848,128.15,128.08,3.83927874]
[1725806988867,1.3439,128.14,128.09,8.39]
[1725806989170,3.1226,128.11,128.09,8.39]
[1725806989358,3.1226,128.11,128.08,3.83927874]
[1725806989555,3.1226,128.11,128.09,8.39]
[1725806989758,3.1227,128.1,128.09,8.39]
[1725807009873,3.1225,128.11,128.09,8.39]
[1725807010079,3.1225,128.11,128.1,8.39]
[1725807010669,3.1223,128.12,128.1,12.19776674]
[1725807010978,3.1223,128.12,128.11,8.39]
[1725807011579,170.97503848,128.15,128.11,8.39]
[1725807012078,3.1222,128.12,128.11,8.39]
[1725807014085,23.42,128.17,128.11,8.39]
[1725807014290,30.02061704,128.23,128.16,8.39]
[1725807014586,60.26847067,128.23,128.17,8.39]
[1725807014983,21.85785363,128.22,128.17,8.39]
[1725807015187,23.42,128.21,128.02,3.6297122]
[1725807015387,3.1227,128.11,128.1,8.39]
[1725807015788,3.1226,128.11,128.09,8.39]
[1725807016094,27.28563752,128.15,128.09,8.39]
[1725807016292,3.1226,128.11,128.09,8.39]
[1725807016588,8.39,128.14,128.09,12.22909102]
[1725807016787,3.1227,128.1,128.09,3.83909102]
[1725807016989,3.1227,128.1,128.08,8.39]
[1725807017290,3.1227,128.1,128.09,3.89045053]
[1725807018283,3.1227,128.1,128.08,8.39]
[1725807018688,3.1229,128.09,128.08,8.39]
[1725807019491,3.1229,128.09,128.08,12.31910127]
[1725807024196,23.42,128.15,128.08,12.31910127]
[1725807024403,3.1227,128.1,128.08,3.92910127]
[1725807024590,3.1227,128.1,128.05,3.1239]
[1725807024904,3.1227,128.1,128.05,7.11242279]
[1725807025102,3.1227,128.1,128.05,3.1239]
[1725807025602,3.1227,128.1,128.05,6.99608925]
[1725807025800,27.24573391,128.15,128.06,3.1236]
[1725807026000,27.24573391,128.15,128.1,8.39]
[1725807026205,27.24573391,128.15,128.1,12.30942535]
[1725807026595,1.4095,128.19,128.11,8.39]
[1725807026801,23.42,128.17,128.11,8.39]
[1725807027705,23.42,128.17,128.11,12.36330484]
[1725807028599,3.1221,128.13,128.11,12.36330484]
[1725807031709,3.1221,128.13,128.11,3.97330484]
[1725807031710,3.1222,128.12,128.11,3.97330484]
[1725807032002,23.42,128.13,128.08,8.39]
[1725807032405,23.42,128.13,128.08,12.24869964]
[1725807032607,3.1228,128.1,128.08,12.24869964]
[1725807034405,8.39,128.11,127.95,3.6297122]
[1725807034599,8.39,128.11,127.93,53.24988452]
[1725807034600,31.81,128.09,128.03,8.39]
[1725807034813,31.81,128.09,128.03,12.20527726]
[1725807035302,3.124,128.05,128.03,12.20527726]
[1725807037198,23.42,128.09,128.04,8.39]
[1725807037802,3.1238,128.06,128.04,8.39]
[1725807038002,3.1238,128.06,128.04,12.29689682]
[1725807040705,3.1239,128.05,128.03,8.39]
[1725807040895,23.42,128.06,128.02,8.39]
[1725807042409,3.1242,128.04,128.02,8.39]
[1725807042707,23.42,128.07,128.03,8.39]
[1725807042914,3.1241,128.04,128.03,8.39]
[1725807043106,3.1241,128.04,127.99,2.6582]
[1725807043302,3.1241,128.04,128.03,8.39]
[1725807044108,3.1241,128.04,128.03,12.3457135]
[1725807046805,3.1241,128.04,128.03,3.9557135]
[1725807047000,3.1241,128.04,128.03,8.39]
[1725807047201,3.1241,128.04,128.03,12.3562579]
[1725807048301,3.124,128.05,128.03,12.3562579]
[1725807052415,23.42,128.1,128.04,8.39]
[1725807052606,23.42,128.1,128.05,8.39]
[1725807052811,23.42,128.1,128.07,8.39]
[1725807053012,144.81882444,128.11,128.08,8.39]
[1725807053313,3.1227,128.1,128.09,8.39]
[1725807053507,144.81882444,128.11,128.09,8.39]
[1725807053915,147.94142444,128.11,128.09,8.39]